[Event "Titled Tuesday Blitz May 03 Late 2022"]
[White "Skytte, Rasmus"]
[Black "Storey, Charles H"]
[WhiteFideId "1404210"]
[BlackFideId "406686"]
[WhiteElo "2430"]
[BlackElo "2263"]
[Result "0-1"]
[Round "05"]
[TimeControl "180+1"]
[Date "2022.05.03"]
[WhiteClock "0:00:02"]
[BlackClock "0:01:21"]

1. e4 {[%clk 0:02:53]}  c5 {[%clk 0:02:59]} 2. Nf3 {[%clk 0:02:49]}  g6 {[%clk 0:02:58]} 3. d4 {[%clk 0:02:45]}  cxd4 {[%clk 0:02:58]} 4. Nxd4 {[%clk 0:02:46]}  Nf6 {[%clk 0:02:57]} 5. Nc3 {[%clk 0:02:44]}  d6 {[%clk 0:02:55]} 6. Be3 {[%clk 0:02:25]}  Bg7 {[%clk 0:02:54]} 7. f3 {[%clk 0:02:24]}  O-O {[%clk 0:02:53]} 8. Qd2 {[%clk 0:02:22]}  Nc6 {[%clk 0:02:53]} 9. O-O-O {[%clk 0:02:18]}  Nxd4 {[%clk 0:02:44]} 10. Bxd4 {[%clk 0:02:16]}  Be6 {[%clk 0:02:45]} 11. h4 {[%clk 0:01:25]}  Qa5 {[%clk 0:02:42]} 12. Kb1 {[%clk 0:01:16]}  Rfc8 {[%clk 0:02:39]} 13. Nd5 {[%clk 0:00:28]}  Qxd2 {[%clk 0:02:36]} 14. Nxf6+ {[%clk 0:00:24]}  Bxf6 {[%clk 0:02:33]} 15. Rxd2 {[%clk 0:00:25]}  Bxd4 {[%clk 0:02:29]} 16. Rxd4 {[%clk 0:00:24]}  h6 {[%clk 0:02:22]} 17. Bd3 {[%clk 0:00:16]}  Rc5 {[%clk 0:02:08]} 18. f4 {[%clk 0:00:14]}  Rac8 {[%clk 0:02:07]} 19. Rc1 {[%clk 0:00:13]}  Bc4 {[%clk 0:01:59]} 20. Bxc4 {[%clk 0:00:12]}  Rxc4 {[%clk 0:02:00]} 21. Rxc4 {[%clk 0:00:13]}  Rxc4 {[%clk 0:02:00]} 22. Re1 {[%clk 0:00:12]}  Kf8 {[%clk 0:01:53]} 23. c3 {[%clk 0:00:12]}  d5 {[%clk 0:01:51]} 24. exd5 {[%clk 0:00:09]}  Rxf4 {[%clk 0:01:52]} 25. g3 {[%clk 0:00:08]}  Rf3 {[%clk 0:01:52]} 26. Rg1 {[%clk 0:00:08]}  b5 {[%clk 0:01:45]} 27. Kc2 {[%clk 0:00:07]}  Ke8 {[%clk 0:01:44]} 28. Kb3 {[%clk 0:00:06]}  a5 {[%clk 0:01:42]} 29. a4 {[%clk 0:00:06]}  bxa4+ {[%clk 0:01:42]} 30. Kxa4 {[%clk 0:00:05]}  Kd7 {[%clk 0:01:35]} 31. Kxa5 {[%clk 0:00:05]}  Kd6 {[%clk 0:01:36]} 32. b4 {[%clk 0:00:05]}  Kxd5 {[%clk 0:01:36]} 33. b5 {[%clk 0:00:05]}  Rxc3 {[%clk 0:01:35]} 34. b6 {[%clk 0:00:05]}  Kc6 {[%clk 0:01:35]} 35. Rb1 {[%clk 0:00:03]}  Ra3+ {[%clk 0:01:26]} 36. Kb4 {[%clk 0:00:03]}  Rxg3 {[%clk 0:01:25]} 37. Ka5 {[%clk 0:00:02]}  Ra3+ {[%clk 0:01:21]} 38. Kb4 {[%clk 0:00:02]}  Ra6 {[%clk 0:01:21]} 0-1


[Site "https://www.chess.com"]

[Event "Titled Tuesday Blitz May 03 Late 2022"]
[White "Sliwicki, Damian"]
[Black "Ambartsumova, Karina"]
[WhiteFideId "1127128"]
[BlackFideId "4166299"]
[WhiteElo "2084"]
[BlackElo "2262"]
[Result "0-1"]
[Round "05"]
[TimeControl "180+1"]
[Date "2022.05.03"]
[WhiteClock "0:00:03"]
[BlackClock "0:01:28"]

1. e4 {[%clk 0:03:00]}  e5 {[%clk 0:02:59]} 2. Nf3 {[%clk 0:03:00]}  Nc6 {[%clk 0:03:00]} 3. Bc4 {[%clk 0:02:53]}  Bc5 {[%clk 0:02:58]} 4. c3 {[%clk 0:02:53]}  Nf6 {[%clk 0:02:58]} 5. d3 {[%clk 0:02:53]}  O-O {[%clk 0:02:56]} 6. Bb3 {[%clk 0:02:52]}  d5 {[%clk 0:02:49]} 7. Qe2 {[%clk 0:02:51]}  Re8 {[%clk 0:02:43]} 8. Nbd2 {[%clk 0:02:43]}  h6 {[%clk 0:02:41]} 9. Nf1 {[%clk 0:02:42]}  a5 {[%clk 0:02:35]} 10. Ng3 {[%clk 0:02:38]}  a4 {[%clk 0:02:32]} 11. Bc2 {[%clk 0:02:36]}  Be6 {[%clk 0:02:27]} 12. O-O {[%clk 0:01:38]}  Qd7 {[%clk 0:02:27]} 13. Nh4 {[%clk 0:01:33]}  Bg4 {[%clk 0:02:14]} 14. Qe1 {[%clk 0:01:27]}  Ne7 {[%clk 0:02:09]} 15. h3 {[%clk 0:00:58]}  Bxh3 {[%clk 0:02:08]} 16. gxh3 {[%clk 0:00:54]}  Qxh3 {[%clk 0:02:09]} 17. d4 {[%clk 0:00:41]}  exd4 {[%clk 0:02:01]} 18. Nf3 {[%clk 0:00:09]}  d3 {[%clk 0:01:59]} 19. Be3 {[%clk 0:00:08]}  Bxe3 {[%clk 0:01:53]} 20. Qxe3 {[%clk 0:00:08]}  dxe4 {[%clk 0:01:36]} 21. Ne5 {[%clk 0:00:05]}  dxc2 {[%clk 0:01:29]} 22. Qf4 {[%clk 0:00:03]}  Ned5 {[%clk 0:01:28]} 0-1


[Site "https://www.chess.com"]

[Event "Titled Tuesday Blitz May 03 Late 2022"]
[White "Stojanovski, Sandi"]
[Black "Donchenko, Anatoly"]
[WhiteFideId "1403249"]
[BlackFideId "4106091"]
[WhiteElo "2288"]
[BlackElo "2339"]
[Result "1/2-1/2"]
[Round "05"]
[TimeControl "180+1"]
[Date "2022.05.03"]
[WhiteClock "0:00:05"]
[BlackClock "0:00:45"]

1. d3 {[%clk 0:02:57]}  c5 {[%clk 0:02:58]} 2. Nf3 {[%clk 0:02:58]}  g6 {[%clk 0:02:57]} 3. g3 {[%clk 0:02:59]}  Bg7 {[%clk 0:02:56]} 4. Bg2 {[%clk 0:03:00]}  Nc6 {[%clk 0:02:56]} 5. O-O {[%clk 0:03:01]}  Nf6 {[%clk 0:02:54]} 6. c4 {[%clk 0:03:00]}  O-O {[%clk 0:02:52]} 7. Nc3 {[%clk 0:03:00]}  b6 {[%clk 0:02:51]} 8. Qd2 {[%clk 0:02:59]}  Bb7 {[%clk 0:02:50]} 9. b3 {[%clk 0:03:00]}  d5 {[%clk 0:02:49]} 10. cxd5 {[%clk 0:02:52]}  Nxd5 {[%clk 0:02:49]} 11. Bb2 {[%clk 0:02:53]}  Nxc3 {[%clk 0:02:36]} 12. Bxc3 {[%clk 0:02:52]}  Qd6 {[%clk 0:02:34]} 13. Bxg7 {[%clk 0:02:47]}  Kxg7 {[%clk 0:02:34]} 14. a3 {[%clk 0:02:02]}  a5 {[%clk 0:02:32]} 15. e3 {[%clk 0:01:45]}  Rfd8 {[%clk 0:02:31]} 16. Qc3+ {[%clk 0:01:44]}  f6 {[%clk 0:02:30]} 17. Rfd1 {[%clk 0:01:43]}  Rac8 {[%clk 0:02:28]} 18. h4 {[%clk 0:01:37]}  Rc7 {[%clk 0:02:25]} 19. h5 {[%clk 0:01:36]}  Ne5 {[%clk 0:02:15]} 20. Nxe5 {[%clk 0:01:28]}  Qxe5 {[%clk 0:02:14]} 21. Qxe5 {[%clk 0:01:23]}  fxe5 {[%clk 0:02:13]} 22. Bxb7 {[%clk 0:01:18]}  Rxb7 {[%clk 0:02:12]} 23. hxg6 {[%clk 0:01:17]}  hxg6 {[%clk 0:02:12]} 24. Kf1 {[%clk 0:01:18]}  Rbd7 {[%clk 0:02:10]} 25. Ke2 {[%clk 0:01:18]}  Kf6 {[%clk 0:02:08]} 26. b4 {[%clk 0:01:02]}  cxb4 {[%clk 0:02:03]} 27. axb4 {[%clk 0:01:03]}  Ra8 {[%clk 0:02:02]} 28. Ra4 {[%clk 0:00:59]}  Rda7 {[%clk 0:01:53]} 29. Rda1 {[%clk 0:00:58]}  Ke6 {[%clk 0:01:52]} 30. Kf3 {[%clk 0:00:58]}  Kd5 {[%clk 0:01:51]} 31. Kg4 {[%clk 0:00:32]}  Ke6 {[%clk 0:01:51]} 32. Kg5 {[%clk 0:00:29]}  Kf7 {[%clk 0:01:51]} 33. Kg4 {[%clk 0:00:24]}  Kf6 {[%clk 0:01:50]} 34. Kf3 {[%clk 0:00:23]}  Kf5 {[%clk 0:01:49]} 35. g4+ {[%clk 0:00:23]}  Kf6 {[%clk 0:01:48]} 36. Ke4 {[%clk 0:00:23]}  Ke6 {[%clk 0:01:48]} 37. f3 {[%clk 0:00:20]}  Kd6 {[%clk 0:01:44]} 38. g5 {[%clk 0:00:14]}  Ke6 {[%clk 0:01:44]} 39. R1a2 {[%clk 0:00:11]}  Kd6 {[%clk 0:01:43]} 40. Ra1 {[%clk 0:00:10]}  Ke6 {[%clk 0:01:42]} 41. d4 {[%clk 0:00:10]}  exd4 {[%clk 0:01:41]} 42. Kxd4 {[%clk 0:00:11]}  Rf8 {[%clk 0:01:37]} 43. f4 {[%clk 0:00:11]}  Rfa8 {[%clk 0:01:35]} 44. Kc4 {[%clk 0:00:10]}  Kf5 {[%clk 0:01:31]} 45. Kb5 {[%clk 0:00:10]}  Ra6 {[%clk 0:01:29]} 46. R1a3 {[%clk 0:00:06]}  Ke4 {[%clk 0:01:28]} 47. Kc6 {[%clk 0:00:05]}  Kf5 {[%clk 0:01:22]} 48. Kb5 {[%clk 0:00:05]}  e5 {[%clk 0:01:20]} 49. fxe5 {[%clk 0:00:04]}  Kxe5 {[%clk 0:01:20]} 50. bxa5 {[%clk 0:00:04]}  bxa5 {[%clk 0:01:20]} 51. Rxa5 {[%clk 0:00:02]}  Rxa5+ {[%clk 0:01:20]} 52. Rxa5 {[%clk 0:00:02]}  Rc8 {[%clk 0:01:20]} 53. Ra6 {[%clk 0:00:02]}  Kf5 {[%clk 0:01:19]} 54. Rc6 {[%clk 0:00:01]}  Re8 {[%clk 0:01:18]} 55. Rc3 {[%clk 0:00:01]}  Kxg5 {[%clk 0:01:16]} 56. Kc5 {[%clk 0:00:02]}  Kf5 {[%clk 0:01:13]} 57. Kd4 {[%clk 0:00:03]}  Rd8+ {[%clk 0:01:13]} 58. Kc5 {[%clk 0:00:03]}  Ke4 {[%clk 0:01:06]} 59. Ra3 {[%clk 0:00:03]}  g5 {[%clk 0:01:06]} 60. Kc6 {[%clk 0:00:02]}  Rd3 {[%clk 0:01:04]} 61. Ra4+ {[%clk 0:00:01]}  Kf3 {[%clk 0:00:57]} 62. e4 {[%clk 0:00:02]}  g4 {[%clk 0:00:56]} 63. e5 {[%clk 0:00:03]}  g3 {[%clk 0:00:56]} 64. e6 {[%clk 0:00:03]}  g2 {[%clk 0:00:54]} 65. Ra1 {[%clk 0:00:03]}  Kf2 {[%clk 0:00:49]} 66. Ra2+ {[%clk 0:00:01]}  Kg3 {[%clk 0:00:48]} 67. Rxg2+ {[%clk 0:00:02]}  Kxg2 {[%clk 0:00:48]} 68. e7 {[%clk 0:00:03]}  Re3 {[%clk 0:00:47]} 69. Kd7 {[%clk 0:00:04]}  Kf3 {[%clk 0:00:46]} 70. e8=Q {[%clk 0:00:04]}  Rxe8 {[%clk 0:00:45]} 71. Kxe8 {[%clk 0:00:05]} 1/2-1/2


[Site "https://www.chess.com"]

[Event "Titled Tuesday Blitz May 03 Late 2022"]
[White "Svane, Rasmus"]
[Black "Deac, Bogdan-Daniel"]
[WhiteFideId "4657101"]
[BlackFideId "1226380"]
[WhiteElo "2645"]
[BlackElo "2648"]
[Result "0-1"]
[Round "05"]
[TimeControl "180+1"]
[Date "2022.05.03"]
[WhiteClock "0:00:02"]
[BlackClock "0:00:05"]

1. Nf3 {[%clk 0:03:00]}  d5 {[%clk 0:02:55]} 2. g3 {[%clk 0:02:59]}  Nf6 {[%clk 0:02:54]} 3. Bg2 {[%clk 0:02:59]}  e6 {[%clk 0:02:55]} 4. O-O {[%clk 0:03:00]}  Be7 {[%clk 0:02:56]} 5. c4 {[%clk 0:03:00]}  O-O {[%clk 0:02:57]} 6. b3 {[%clk 0:03:01]}  b6 {[%clk 0:02:57]} 7. d4 {[%clk 0:03:00]}  Bb7 {[%clk 0:02:57]} 8. Nc3 {[%clk 0:03:00]}  c5 {[%clk 0:02:57]} 9. Ne5 {[%clk 0:02:34]}  Nbd7 {[%clk 0:02:41]} 10. cxd5 {[%clk 0:02:14]}  Nxe5 {[%clk 0:02:21]} 11. dxe5 {[%clk 0:01:33]}  Nxd5 {[%clk 0:02:21]} 12. Ne4 {[%clk 0:01:22]}  Qc7 {[%clk 0:02:13]} 13. Bb2 {[%clk 0:01:22]}  Rad8 {[%clk 0:02:12]} 14. Qc1 {[%clk 0:01:16]}  Kh8 {[%clk 0:01:45]} 15. a3 {[%clk 0:01:13]}  b5 {[%clk 0:01:42]} 16. Rd1 {[%clk 0:00:58]}  Nb6 {[%clk 0:01:15]} 17. Qc2 {[%clk 0:00:51]}  c4 {[%clk 0:01:12]} 18. Bd4 {[%clk 0:00:43]}  Bd5 {[%clk 0:00:53]} 19. b4 {[%clk 0:00:40]}  Qc6 {[%clk 0:00:43]} 20. Bf3 {[%clk 0:00:37]}  Nd7 {[%clk 0:00:38]} 21. h4 {[%clk 0:00:33]}  Qc7 {[%clk 0:00:33]} 22. Qc3 {[%clk 0:00:18]}  Nb8 {[%clk 0:00:32]} 23. Nd6 {[%clk 0:00:13]}  Bxf3 {[%clk 0:00:17]} 24. exf3 {[%clk 0:00:09]}  a6 {[%clk 0:00:14]} 25. Bc5 {[%clk 0:00:09]}  Kg8 {[%clk 0:00:07]} 26. Rd2 {[%clk 0:00:09]}  Nd7 {[%clk 0:00:05]} 27. Bd4 {[%clk 0:00:09]}  Qc6 {[%clk 0:00:05]} 28. Rad1 {[%clk 0:00:09]}  Bxd6 {[%clk 0:00:05]} 29. exd6 {[%clk 0:00:09]}  f6 {[%clk 0:00:05]} 30. f4 {[%clk 0:00:08]}  Rfe8 {[%clk 0:00:05]} 31. Qe3 {[%clk 0:00:07]}  e5 {[%clk 0:00:05]} 32. fxe5 {[%clk 0:00:07]}  Nxe5 {[%clk 0:00:06]} 33. Bxe5 {[%clk 0:00:08]}  Rxe5 {[%clk 0:00:07]} 34. Qa7 {[%clk 0:00:07]}  Rd7 {[%clk 0:00:06]} 35. Qd4 {[%clk 0:00:04]}  Kf7 {[%clk 0:00:07]} 36. a4 {[%clk 0:00:02]}  Qe4 {[%clk 0:00:06]} 37. Qb6 {[%clk 0:00:02]}  c3 {[%clk 0:00:06]} 38. Rd5 {[%clk 0:00:01]}  Rxd5 {[%clk 0:00:05]} 39. Rc1 {[%clk 0:00:02]}  Rd3 {[%clk 0:00:04]} 40. axb5 {[%clk 0:00:01]}  R7xd6 {[%clk 0:00:04]} 41. Qc7+ {[%clk 0:00:02]}  Rd7 {[%clk 0:00:05]} 42. Qc5 {[%clk 0:00:02]}  Rd1+ {[%clk 0:00:05]} 43. Kh2 {[%clk 0:00:02]}  Qh1# {[%clk 0:00:05]} 0-1


[Site "https://www.chess.com"]

[Event "Titled Tuesday Blitz May 03 Late 2022"]
[White "Tanenbaum, Zachary"]
[Black "Pinheiro, Iung Alicio de O."]
[WhiteFideId "2060850"]
[BlackFideId "2104350"]
[WhiteElo "2168"]
[BlackElo "2524"]
[Result "1-0"]
[Round "05"]
[TimeControl "180+1"]
[Date "2022.05.03"]
[WhiteClock "0:00:31"]
[BlackClock "0:00:33"]

1. e4 {[%clk 0:02:59]}  b6 {[%clk 0:02:58]} 2. d4 {[%clk 0:02:59]}  Bb7 {[%clk 0:02:58]} 3. Bd3 {[%clk 0:03:00]}  Nc6 {[%clk 0:02:57]} 4. Nf3 {[%clk 0:02:59]}  Nb4 {[%clk 0:02:56]} 5. O-O {[%clk 0:02:56]}  e6 {[%clk 0:02:54]} 6. Re1 {[%clk 0:02:56]}  Nxd3 {[%clk 0:02:54]} 7. Qxd3 {[%clk 0:02:57]}  Nf6 {[%clk 0:02:40]} 8. e5 {[%clk 0:02:53]}  Nd5 {[%clk 0:02:24]} 9. a3 {[%clk 0:02:53]}  d6 {[%clk 0:02:18]} 10. c4 {[%clk 0:02:49]}  Ne7 {[%clk 0:02:18]} 11. Nc3 {[%clk 0:02:38]}  dxe5 {[%clk 0:02:15]} 12. Nxe5 {[%clk 0:02:37]}  Ng6 {[%clk 0:02:11]} 13. d5 {[%clk 0:01:54]}  Nxe5 {[%clk 0:01:34]} 14. Rxe5 {[%clk 0:01:55]}  Bd6 {[%clk 0:01:34]} 15. Re1 {[%clk 0:01:54]}  Qh4 {[%clk 0:01:27]} 16. h3 {[%clk 0:01:45]}  O-O-O {[%clk 0:01:25]} 17. Ne4 {[%clk 0:01:26]}  h6 {[%clk 0:01:16]} 18. Nxd6+ {[%clk 0:01:06]}  Rxd6 {[%clk 0:01:16]} 19. Qc2 {[%clk 0:00:51]}  exd5 {[%clk 0:01:08]} 20. c5 {[%clk 0:00:51]}  Rf6 {[%clk 0:00:58]} 21. cxb6 {[%clk 0:00:50]}  axb6 {[%clk 0:00:58]} 22. Re7 {[%clk 0:00:49]}  Rc6 {[%clk 0:00:56]} 23. Qf5+ {[%clk 0:00:48]}  Kb8 {[%clk 0:00:55]} 24. Rxf7 {[%clk 0:00:48]}  Re8 {[%clk 0:00:44]} 25. Bf4 {[%clk 0:00:42]}  d4 {[%clk 0:00:41]} 26. Qd7 {[%clk 0:00:35]}  Re2 {[%clk 0:00:37]} 27. Bxc7+ {[%clk 0:00:34]}  Ka8 {[%clk 0:00:33]} 28. Bg3 {[%clk 0:00:31]} 1-0


[Site "https://www.chess.com"]

[Event "Titled Tuesday Blitz May 03 Late 2022"]
[White "Toncheva, Nadya"]
[Black "Trost, Edvin"]
[WhiteFideId "2924056"]
[BlackFideId "1729519"]
[WhiteElo "1884"]
[BlackElo "2160"]
[Result "0-1"]
[Round "05"]
[TimeControl "180+1"]
[Date "2022.05.03"]
[WhiteClock "0:00:01"]
[BlackClock "0:01:38"]

1. e4 {[%clk 0:03:00]}  e5 {[%clk 0:02:56]} 2. Nf3 {[%clk 0:02:55]}  d6 {[%clk 0:02:56]} 3. Bc4 {[%clk 0:02:54]}  Be7 {[%clk 0:02:53]} 4. d4 {[%clk 0:02:52]}  exd4 {[%clk 0:02:53]} 5. Nxd4 {[%clk 0:02:51]}  Nf6 {[%clk 0:02:54]} 6. Nc3 {[%clk 0:02:51]}  O-O {[%clk 0:02:54]} 7. O-O {[%clk 0:02:51]}  Re8 {[%clk 0:02:52]} 8. h3 {[%clk 0:02:51]}  Bf8 {[%clk 0:02:51]} 9. Re1 {[%clk 0:02:51]}  c6 {[%clk 0:02:51]} 10. a4 {[%clk 0:02:49]}  Nbd7 {[%clk 0:02:51]} 11. f4 {[%clk 0:02:37]}  d5 {[%clk 0:02:49]} 12. exd5 {[%clk 0:01:53]}  Rxe1+ {[%clk 0:02:50]} 13. Qxe1 {[%clk 0:01:53]}  Nb6 {[%clk 0:02:49]} 14. Bd3 {[%clk 0:01:45]}  Nbxd5 {[%clk 0:02:44]} 15. Nf3 {[%clk 0:01:32]}  Bc5+ {[%clk 0:02:34]} 16. Kh1 {[%clk 0:01:27]}  Be6 {[%clk 0:02:28]} 17. Ne4 {[%clk 0:01:24]}  Nxe4 {[%clk 0:02:25]} 18. Bxe4 {[%clk 0:01:03]}  Nf6 {[%clk 0:02:21]} 19. Bd3 {[%clk 0:00:48]}  Bd5 {[%clk 0:02:17]} 20. Ne5 {[%clk 0:00:45]}  Nd7 {[%clk 0:02:00]} 21. Be3 {[%clk 0:00:38]}  Nxe5 {[%clk 0:01:56]} 22. fxe5 {[%clk 0:00:32]}  Qd7 {[%clk 0:01:56]} 23. Kh2 {[%clk 0:00:21]}  Bxe3 {[%clk 0:01:52]} 24. Qxe3 {[%clk 0:00:22]}  Re8 {[%clk 0:01:52]} 25. c4 {[%clk 0:00:17]}  Be6 {[%clk 0:01:49]} 26. Qxa7 {[%clk 0:00:16]}  Qxd3 {[%clk 0:01:48]} 27. Qxb7 {[%clk 0:00:13]}  Qxc4 {[%clk 0:01:46]} 28. a5 {[%clk 0:00:10]}  Qf4+ {[%clk 0:01:45]} 29. Kh1 {[%clk 0:00:10]}  Bd5 {[%clk 0:01:46]} 30. Qd7 {[%clk 0:00:03]}  Rf8 {[%clk 0:01:45]} 31. Qg4 {[%clk 0:00:02]}  Qxe5 {[%clk 0:01:38]} 32. a6 {[%clk 0:00:02]}  Qxb2 {[%clk 0:01:38]} 33. Qd1 {[%clk 0:00:02]}  Qc3 {[%clk 0:01:37]} 34. a7 {[%clk 0:00:01]}  Qxh3+ {[%clk 0:01:37]} 35. Kg1 {[%clk 0:00:01]}  Qxg2# {[%clk 0:01:38]} 0-1


[Site "https://www.chess.com"]

[Event "Titled Tuesday Blitz May 03 Late 2022"]
[White "Turutin, Alexander"]
[Black "Piliczewski, Bogusz"]
[WhiteFideId "4180623"]
[BlackFideId "1104144"]
[WhiteElo "2402"]
[BlackElo "1896"]
[Result "1-0"]
[Round "05"]
[TimeControl "180+1"]
[Date "2022.05.03"]
[WhiteClock "0:00:44"]
[BlackClock "0:00:07"]

1. e4 {[%clk 0:03:00]}  c6 {[%clk 0:02:57]} 2. d4 {[%clk 0:03:00]}  d5 {[%clk 0:02:57]} 3. Nc3 {[%clk 0:03:00]}  dxe4 {[%clk 0:02:56]} 4. Nxe4 {[%clk 0:03:01]}  Bf5 {[%clk 0:02:55]} 5. Ng3 {[%clk 0:02:58]}  Bg6 {[%clk 0:02:56]} 6. Nh3 {[%clk 0:02:58]}  h6 {[%clk 0:02:53]} 7. Nf4 {[%clk 0:02:53]}  Bh7 {[%clk 0:02:53]} 8. Bc4 {[%clk 0:02:54]}  e6 {[%clk 0:02:52]} 9. O-O {[%clk 0:02:51]}  Nf6 {[%clk 0:02:52]} 10. Re1 {[%clk 0:02:51]}  Bd6 {[%clk 0:02:51]} 11. Bxe6 {[%clk 0:02:45]}  g5 {[%clk 0:02:22]} 12. Bb3+ {[%clk 0:02:17]}  Kf8 {[%clk 0:02:14]} 13. Nfh5 {[%clk 0:02:02]}  Bxg3 {[%clk 0:02:03]} 14. fxg3 {[%clk 0:01:50]}  Nxh5 {[%clk 0:01:47]} 15. Qxh5 {[%clk 0:01:48]}  Bg6 {[%clk 0:01:48]} 16. Qg4 {[%clk 0:01:41]}  f5 {[%clk 0:01:39]} 17. Qd1 {[%clk 0:01:31]}  Kg7 {[%clk 0:01:23]} 18. d5 {[%clk 0:01:29]}  Re8 {[%clk 0:01:09]} 19. Bd2 {[%clk 0:01:25]}  cxd5 {[%clk 0:01:03]} 20. Bc3+ {[%clk 0:01:24]}  Kh7 {[%clk 0:00:55]} 21. Qd4 {[%clk 0:01:25]}  Qd7 {[%clk 0:00:47]} 22. Rxe8 {[%clk 0:01:22]}  Bxe8 {[%clk 0:00:46]} 23. Qh8+ {[%clk 0:01:15]}  Kg6 {[%clk 0:00:46]} 24. Qg8+ {[%clk 0:01:15]}  Kh5 {[%clk 0:00:42]} 25. h3 {[%clk 0:00:57]}  Bf7 {[%clk 0:00:37]} 26. g4+ {[%clk 0:00:54]}  fxg4 {[%clk 0:00:35]} 27. hxg4+ {[%clk 0:00:55]}  Kxg4 {[%clk 0:00:34]} 28. Qf8 {[%clk 0:00:52]}  Nc6 {[%clk 0:00:29]} 29. Qxa8 {[%clk 0:00:51]}  d4 {[%clk 0:00:27]} 30. Bd2 {[%clk 0:00:49]}  Bxb3 {[%clk 0:00:23]} 31. axb3 {[%clk 0:00:50]}  h5 {[%clk 0:00:16]} 32. Qf8 {[%clk 0:00:49]}  Qd5 {[%clk 0:00:13]} 33. Rf1 {[%clk 0:00:46]}  Qe5 {[%clk 0:00:07]} 34. Qc8+ {[%clk 0:00:44]} 1-0


[Site "https://www.chess.com"]

[Event "Titled Tuesday Blitz May 03 Late 2022"]
[White "Urbina Perez, Juan Antonio"]
[Black "Vlassov, Nikolai"]
[WhiteFideId "2217368"]
[BlackFideId "4103360"]
[WhiteElo "2192"]
[BlackElo "2407"]
[Result "0-1"]
[Round "05"]
[TimeControl "180+1"]
[Date "2022.05.03"]
[WhiteClock "0:01:00"]
[BlackClock "0:01:39"]

1. e4 {[%clk 0:02:54]}  Nc6 {[%clk 0:02:59]} 2. Nf3 {[%clk 0:02:53]}  d5 {[%clk 0:02:59]} 3. exd5 {[%clk 0:02:48]}  Qxd5 {[%clk 0:02:59]} 4. Nc3 {[%clk 0:02:48]}  Qa5 {[%clk 0:02:58]} 5. Bc4 {[%clk 0:02:45]}  Bg4 {[%clk 0:02:58]} 6. d3 {[%clk 0:02:40]}  O-O-O {[%clk 0:02:57]} 7. h3 {[%clk 0:02:40]}  Bh5 {[%clk 0:02:57]} 8. g4 {[%clk 0:02:39]}  Bg6 {[%clk 0:02:57]} 9. Bd2 {[%clk 0:02:39]}  e5 {[%clk 0:02:56]} 10. Qe2 {[%clk 0:02:38]}  Nf6 {[%clk 0:02:42]} 11. O-O-O {[%clk 0:02:33]}  Bb4 {[%clk 0:02:32]} 12. Nh4 {[%clk 0:02:31]}  Nd4 {[%clk 0:02:27]} 13. Qe3 {[%clk 0:02:15]}  b5 {[%clk 0:02:25]} 14. Nxg6 {[%clk 0:01:47]}  fxg6 {[%clk 0:02:13]} 15. Bb3 {[%clk 0:01:34]}  Rhe8 {[%clk 0:02:08]} 16. Kb1 {[%clk 0:01:26]}  Qb6 {[%clk 0:01:57]} 17. Ne4 {[%clk 0:01:18]}  Bxd2 {[%clk 0:01:42]} 18. Rxd2 {[%clk 0:01:10]}  a5 {[%clk 0:01:41]} 19. c3 {[%clk 0:00:59]}  Nxb3 {[%clk 0:01:39]} 20. axb3 {[%clk 0:01:00]}  Qxe3 {[%clk 0:01:39]} 0-1


[Site "https://www.chess.com"]

[Event "Titled Tuesday Blitz May 03 Late 2022"]
[White "Vasquez Schroeder, Rodrigo"]
[Black "Herrera Reyes, Jose Antonio"]
[WhiteFideId "3400042"]
[BlackFideId "2274914"]
[WhiteElo "2561"]
[BlackElo "2361"]
[Result "1-0"]
[Round "05"]
[TimeControl "180+1"]
[Date "2022.05.03"]
[WhiteClock "0:01:08"]
[BlackClock "0:00:18"]

1. e4 {[%clk 0:03:00]}  c5 {[%clk 0:02:29]} 2. Nf3 {[%clk 0:03:00]}  e6 {[%clk 0:02:29]} 3. d4 {[%clk 0:03:01]}  cxd4 {[%clk 0:02:30]} 4. Nxd4 {[%clk 0:03:01]}  a6 {[%clk 0:02:30]} 5. Bd3 {[%clk 0:03:01]}  Bc5 {[%clk 0:02:29]} 6. Nb3 {[%clk 0:03:00]}  Ba7 {[%clk 0:02:30]} 7. Qe2 {[%clk 0:02:58]}  Nc6 {[%clk 0:02:26]} 8. Be3 {[%clk 0:02:58]}  d6 {[%clk 0:02:26]} 9. O-O {[%clk 0:02:56]}  e5 {[%clk 0:02:23]} 10. Bxa7 {[%clk 0:02:54]}  Rxa7 {[%clk 0:02:23]} 11. c4 {[%clk 0:02:53]}  Nge7 {[%clk 0:02:22]} 12. Qe3 {[%clk 0:02:53]}  Ng6 {[%clk 0:02:22]} 13. g3 {[%clk 0:02:52]}  h5 {[%clk 0:02:20]} 14. Nc3 {[%clk 0:02:48]}  h4 {[%clk 0:02:19]} 15. Rfd1 {[%clk 0:02:43]}  Bg4 {[%clk 0:02:13]} 16. Be2 {[%clk 0:02:39]}  Be6 {[%clk 0:02:11]} 17. Rd2 {[%clk 0:02:32]}  hxg3 {[%clk 0:02:11]} 18. fxg3 {[%clk 0:02:27]}  b6 {[%clk 0:01:52]} 19. Rad1 {[%clk 0:02:23]}  Rd7 {[%clk 0:01:52]} 20. Nd5 {[%clk 0:02:22]}  Bxd5 {[%clk 0:01:33]} 21. cxd5 {[%clk 0:02:22]}  Nce7 {[%clk 0:01:33]} 22. Bxa6 {[%clk 0:02:20]}  Kf8 {[%clk 0:01:33]} 23. Bb5 {[%clk 0:02:19]}  Ra7 {[%clk 0:01:33]} 24. a4 {[%clk 0:02:16]}  Kg8 {[%clk 0:01:32]} 25. Rf1 {[%clk 0:02:10]}  Qc8 {[%clk 0:01:27]} 26. Rdf2 {[%clk 0:02:08]}  Qh3 {[%clk 0:01:24]} 27. Re1 {[%clk 0:02:02]}  f5 {[%clk 0:01:19]} 28. Bf1 {[%clk 0:01:56]}  Qh5 {[%clk 0:01:10]} 29. exf5 {[%clk 0:01:53]}  Nxf5 {[%clk 0:01:09]} 30. Qf3 {[%clk 0:01:53]}  Qxf3 {[%clk 0:01:03]} 31. Rxf3 {[%clk 0:01:53]}  Nge7 {[%clk 0:01:03]} 32. Bb5 {[%clk 0:01:48]}  g6 {[%clk 0:01:02]} 33. Nd2 {[%clk 0:01:47]}  Kg7 {[%clk 0:01:00]} 34. Ne4 {[%clk 0:01:38]}  Nxd5 {[%clk 0:00:58]} 35. Rf2 {[%clk 0:01:28]}  Nd4 {[%clk 0:00:57]} 36. Nxd6 {[%clk 0:01:26]}  Re7 {[%clk 0:00:49]} 37. Bc4 {[%clk 0:01:18]}  Nf6 {[%clk 0:00:46]} 38. Ref1 {[%clk 0:01:12]}  Ng4 {[%clk 0:00:19]} 39. Rf7+ {[%clk 0:01:12]}  Rxf7 {[%clk 0:00:19]} 40. Rxf7+ {[%clk 0:01:12]}  Kh6 {[%clk 0:00:20]} 41. Re7 {[%clk 0:01:12]}  Nf3+ {[%clk 0:00:19]} 42. Kg2 {[%clk 0:01:12]}  Nfxh2 {[%clk 0:00:19]} 43. Nf7+ {[%clk 0:01:11]}  Kg7 {[%clk 0:00:17]} 44. Nxh8+ {[%clk 0:01:11]}  Kxh8 {[%clk 0:00:18]} 45. Be2 {[%clk 0:01:08]} 1-0


[Site "https://www.chess.com"]